bitfinex/quotes_ETHUSD_20240603
["timestamp","ask_amount","ask_price","bid_price","bid_amount"]
[1717439361257,1.586534,3783.0,3782.5,1.32126577]
[1717439361481,2.1578871,3783.0,3782.5,1.32126577]
[1717439361677,0.57135409,3782.9,3782.5,1.32126577]
[1717439361881,1.58646375,3783.0,3782.5,1.32126577]
[1717439362089,2.15781784,3783.0,3782.5,1.32126577]
[1717439362391,1.58646375,3783.0,3782.5,1.32126577]
[1717439362596,2.15781784,3783.0,3782.5,1.32126577]
[1717439362752,1.58646375,3783.0,3782.5,1.32126577]
[1717439362947,0.57136195,3782.9,3782.5,1.32126577]
[1717439363161,0.57136195,3782.8,3782.5,1.32126577]
[1717439363491,2.15793101,3782.8,3782.5,1.32126577]
[1717439363671,0.57136195,3782.7,3782.5,1.32126577]
[1717439363876,2.2776,3782.9,3782.5,1.32126577]
[1717439363877,2.15793101,3782.6,3782.5,1.32126577]
[1717439364079,0.57136195,3782.6,3782.5,1.32126577]
[1717439365350,0.57136195,3782.6,3782.1,2.64403]
[1717439365554,2.15779836,3782.5,3782.2,1.32126577]
[1717439365895,1.58643641,3782.4,3782.2,1.32126577]
[1717439366117,2.15779836,3782.4,3782.2,1.32126577]
[1717439366405,1.58643641,3782.5,3782.2,1.32126577]
[1717439366549,2.6436,3782.8,3782.2,1.32126577]
[1717439366749,1.58670418,3782.5,3782.2,1.32126577]
[1717439369001,2.95493935,3782.4,3781.7,2.64424]
[1717439369156,3.97020418,3782.4,3781.8,1.32126577]
[1717439369351,0.57143935,3782.3,3781.8,1.32126577]
[1717439369557,2.15814353,3782.3,3781.8,1.32126577]
[1717439370532,3.44095,3782.3,3781.8,1.32126577]
[1717439370654,6.34024865,3782.3,3781.8,1.32126577]
[1717439370874,1.58670418,3782.2,3781.8,1.32126577]
[1717439371120,2.15818909,3782.2,3781.8,1.32126577]
[1717439371493,5.7687696,3782.3,3781.8,1.32126577]
[1717439371696,0.57149812,3782.2,3781.8,1.32126577]
[1717439372734,4.23065418,3782.3,3781.8,1.32126577]
[1717439373017,3.38506542,3782.3,3781.8,1.32126577]
[1717439373171,4.97252548,3782.3,3781.8,1.32126577]
[1717439373383,3.38506542,3782.3,3781.8,1.32126577]
[1717439373619,4.18206542,3782.3,3781.4,3.44151]
[1717439373886,5.76952548,3782.3,3781.5,1.32126577]
[1717439374319,4.97252548,3782.3,3781.5,1.32126577]
[1717439374523,2.64395,3782.3,3781.6,0.797]
[1717439374723,2.64395,3782.3,3781.7,1.32126577]
[1717439376920,3.44095,3782.3,3781.7,1.32126577]
[1717439377106,2.2707,3782.2,3781.7,1.32126577]
[1717439377291,3.00060837,3782.2,3781.7,1.32126577]
[1717439377907,2.64403,3782.1,3781.7,1.32126577]
[1717439378188,2.64403,3782.1,3781.4,2.64451]
[1717439378397,0.797,3781.7,3780.8,2.64493]
[1717439378604,2.64425,3781.8,3780.9,1.32126577]
[1717439378605,0.797,3781.5,3780.9,1.32126577]
[1717439379919,2.4862,3781.6,3780.9,1.32126577]
[1717439380924,2.64446,3781.5,3780.9,1.32126577]
[1717439381741,2.64446,3781.5,3781.0,0.797]
[1717439381932,2.64446,3781.5,3781.1,1.32126577]
[1717439386792,2.64446,3781.5,3781.1,1.53309235]
[1717439387010,2.64446,3781.5,3781.3,0.797]
[1717439387150,2.64446,3781.5,3780.8,2.2812]
[1717439387349,2.64446,3781.5,3780.9,1.32126577]
[1717439387586,2.3952,3781.6,3780.9,1.32126577]
[1717439387587,2.64465,3781.3,3780.9,1.32126577]
[1717439388390,2.64479,3781.1,3780.9,1.32126577]
[1717439395075,2.64479,3781.1,3780.2,2.289]
[1717439395076,2.64495,3780.8,3780.2,2.289]
[1717439395279,2.64495,3780.8,3780.3,1.55016577]
[1717439397883,2.64495,3780.8,3780.4,0.797]
[1717439398214,2.64495,3780.8,3780.5,1.32126577]
[1717439406047,2.64473,3781.1,3780.6,2.3149]
[1717439406340,2.64473,3781.1,3780.7,1.76458235]
[1717439407409,4.23131225,3781.1,3780.7,1.76458235]
[1717439407923,2.64473,3781.1,3780.7,1.76458235]
[1717439408274,4.23099145,3781.1,3780.7,1.76458235]
[1717439408429,4.23099145,3781.1,3780.7,1.32126577]
[1717439408430,0.57164077,3781.0,3780.7,1.32126577]
[1717439408979,2.15790222,3781.0,3780.7,1.32126577]
[1717439409569,2.15787728,3781.0,3780.7,1.32126577]
[1717439409967,4.23095941,3781.1,3780.7,1.32126577]
[1717439410285,2.15786359,3781.0,3780.7,1.32126577]
[1717439410958,2.15786359,3781.0,3780.7,1.68488235]
[1717439411167,1.58622941,3781.1,3780.7,2.48188235]
[1717439411575,1.58622941,3781.2,3780.7,2.48188235]
[1717439411951,2.15783887,3781.2,3780.7,2.48188235]
[1717439412202,1.58622941,3781.2,3780.8,0.47967824]
[1717439412490,2.15783887,3781.2,3780.9,1.32126577]
[1717439412700,1.58622941,3781.2,3780.9,1.32126577]
[1717439412855,2.15783887,3781.2,3780.9,1.32126577]
[1717439413055,1.58622941,3781.2,3780.9,1.32126577]
[1717439413269,2.15783887,3781.2,3780.9,1.32126577]
[1717439413471,0.57160946,3781.1,3780.9,1.32126577]
[1717439413873,0.57161003,3781.1,3780.9,1.32126577]
[1717439414271,2.15826873,3781.1,3780.9,1.32126577]
[1717439414561,2.15826873,3781.0,3780.9,1.32126577]
[1717439414861,1.5866587,3781.1,3780.9,1.32126577]
[1717439415166,0.57161003,3781.0,3780.9,1.32126577]
[1717439416054,2.15826873,3781.0,3780.9,1.32126577]
[1717439416502,0.57161003,3781.0,3780.9,1.32126577]
[1717439418623,0.57161003,3781.0,3780.3,3.44222]
[1717439418848,1.58647534,3780.8,3780.4,1.89169777]
[1717439419134,0.57161003,3780.7,3780.4,1.89169777]
[1717439419333,1.58647534,3780.8,3780.4,1.89169777]
[1717439419520,2.15814746,3780.7,3780.4,1.89169777]
[1717439419837,1.58647534,3780.7,3780.4,1.89169777]
[1717439419995,1.58647534,3780.8,3780.5,0.75960178]
[1717439420195,0.57166268,3780.7,3780.6,1.32126577]
[1717439421003,2.15813802,3780.7,3780.6,1.32126577]
[1717439421541,0.57166268,3780.7,3780.6,1.32126577]
[1717439422348,2.15813802,3780.7,3780.6,1.32126577]
[1717439422540,0.57166268,3780.7,3780.6,1.32126577]
[1717439423112,0.57165602,3780.7,3780.6,1.32126577]
[1717439423728,2.15813136,3780.7,3780.6,1.32126577]
[1717439425346,4.40813136,3780.7,3780.6,1.32126577]
[1717439425552,0.57165602,3780.7,3780.6,1.32126577]
[1717439426940,2.15784482,3780.7,3780.6,1.32126577]
[1717439427174,2.15784482,3780.7,3780.6,1.76781235]
[1717439427541,1.5861888,3780.8,3780.6,1.76781235]
[1717439427739,1.5861888,3780.9,3780.6,1.76781235]
[1717439428170,1.5861888,3781.0,3780.6,1.76781235]
[1717439428369,0.57161675,3780.9,3780.6,1.76781235]
[1717439428540,1.5861888,3781.0,3780.7,0.62905912]
[1717439428739,1.5861888,3781.0,3780.8,1.32126577]
[1717439428740,0.57161497,3780.9,3780.8,1.32126577]
[1717439429351,0.57161248,3780.9,3780.8,1.32126577]
[1717439430178,1.58620865,3781.0,3780.8,1.32126577]
[1717439430502,0.57160862,3780.9,3780.8,1.32126577]
[1717439430980,1.58620865,3781.0,3780.8,1.32126577]
[1717439431181,1.58620865,3781.0,3780.8,2.13988092]
[1717439431943,1.58620865,3781.1,3780.8,2.13988092]
[1717439432141,0.57159614,3781.0,3780.8,2.13988092]
[1717439432375,1.58620865,3781.1,3780.8,2.13988092]
[1717439432542,2.64453,3781.4,3780.8,2.13988092]
[1717439432543,2.15781621,3781.0,3780.8,2.13988092]
[1717439432877,1.58620865,3781.0,3780.8,2.13988092]
[1717439433189,0.571611,3780.9,3780.8,2.13988092]
[1717439433384,0.571611,3780.9,3780.8,4.78482092]
[1717439433541,7.32,3781.6,3780.8,6.50081104]
[1717439433542,1.58620865,3781.2,3780.8,6.50081104]
[1717439433783,1.58620865,3781.3,3781.0,2.6448]
[1717439433976,0.57156801,3781.5,3781.0,2.6448]
[1717439433977,1.58620865,3781.4,3781.1,1.32126577]
[1717439434288,0.57156108,3781.3,3781.1,1.32126577]
[1717439434488,1.58633373,3781.4,3781.1,1.32126577]
[1717439434680,0.57156517,3781.3,3781.1,1.32126577]
[1717439434885,1.58633373,3781.4,3781.1,1.32126577]
[1717439436220,0.57156289,3781.3,3781.1,2.02422672]
[1717439436435,1.58633373,3781.4,3781.1,2.02422672]
[1717439436795,1.58633373,3781.4,3781.2,2.4274]
[1717439437105,1.58633373,3781.5,3781.3,1.32126577]
[1717439437308,1.58633373,3781.6,3781.3,4.75518844]
[1717439437808,1.58633373,3781.7,3781.3,4.75518844]
[1717439438012,1.58633373,3781.8,3781.6,4.49406577]
[1717439438208,1.58633373,3782.0,3781.7,2.11826577]
[1717439438418,7.32,3782.3,3781.7,2.11826577]
[1717439438419,7.32,3782.3,3781.9,3.44117]
[1717439438735,1.58633373,3782.5,3782.1,2.64403]
[1717439438890,1.58633373,3782.5,3782.2,1.32126577]
[1717439439089,2.15772182,3782.6,3782.2,1.32126577]
[1717439439325,1.58633373,3782.7,3782.2,1.32126577]
[1717439439633,1.58633373,3782.6,3782.2,1.32126577]
[1717439439834,0.48012928,3782.5,3781.7,2.64426]
[1717439440135,2.3718,3782.4,3781.8,1.32126577]
[1717439440341,0.797,3782.3,3781.3,2.64453]
[1717439440522,1.58633373,3782.2,3781.4,1.32126577]
[1717439440894,2.15777333,3782.2,3781.4,1.32126577]
[1717439441291,3.17123703,3782.3,3781.4,1.32126577]
[1717439441491,2.15782549,3782.2,3781.4,1.32126577]
[1717439442029,3.17123703,3782.3,3781.5,2.64443]
[1717439442261,1.5849033,3782.3,3781.6,1.32126577]
[1717439442432,1.58633373,3782.4,3781.7,5.8036]
[1717439442591,1.58633373,3782.4,3781.8,1.32126577]
[1717439443125,1.58633373,3782.5,3781.8,1.32126577]
[1717439443505,2.38333373,3782.6,3781.8,1.32126577]
[1717439443710,3.18910526,3782.6,3781.8,1.32126577]
[1717439444144,0.57144153,3782.4,3781.8,1.32126577]
[1717439444430,2.15777526,3782.5,3781.8,1.32126577]
[1717439445560,0.797,3782.5,3781.8,1.32126577]
[1717439447310,0.797,3782.5,3781.9,2.64416]
[1717439447512,2.15777846,3782.7,3782.0,1.32126577]
[1717439447737,1.58633373,3782.7,3782.1,2.64403]
[1717439447901,1.58633373,3782.9,3782.6,3.44068]
[1717439448096,2.64232,3784.6,3782.4,2.4188]
[1717439448097,1.58633373,3783.2,3782.8,4.76180577]
[1717439448305,1.58633373,3783.5,3783.2,2.64326]
[1717439448527,1.58633373,3783.5,3783.3,1.32126577]
[1717439448763,1.58633373,3784.0,3783.3,1.32126577]
[1717439449065,2.66017528,3783.9,3783.3,1.32126577]
[1717439449225,2.0889361,3783.9,3783.3,1.32126577]
[1717439449425,0.57123918,3784.0,3783.4,2.6431]
[1717439449426,1.58633373,3784.0,3783.4,2.6431]
[1717439449662,2.64269,3784.1,3783.5,1.32126577]
[1717439452774,2.64236,3784.5,3783.6,2.64297]
[1717439452980,2.64236,3784.5,3783.7,1.32126577]
[1717439453504,2.3281,3784.7,3783.8,2.64284]
[1717439453679,2.64206,3785.0,3783.9,1.32126577]
[1717439454399,2.64206,3785.0,3784.0,2.64266]
[1717439454605,2.64206,3785.0,3784.1,1.32126577]
[1717439464592,2.64206,3785.0,3784.2,2.3914]
[1717439464776,2.64206,3785.0,3784.3,1.95679835]
[1717439464972,2.4899,3785.4,3784.5,2.64234]
[1717439464973,1.5864087,3785.3,3784.5,2.64234]
[1717439465188,4.2281487,3785.4,3784.6,1.32126577]
[1717439465439,2.64174,3785.4,3784.6,1.32126577]
[1717439466699,4.09655487,3785.4,3784.6,1.32126577]
[1717439466903,0.57106178,3785.3,3784.6,1.32126577]
[1717439467109,2.15747048,3785.3,3784.6,1.32126577]
[1717439467633,2.15747048,3785.2,3784.6,1.32126577]
[1717439467838,1.5864087,3785.2,3784.6,1.32126577]
[1717439468014,2.15747048,3785.3,3784.6,1.32126577]
[1717439468218,1.5864087,3785.2,3784.6,1.32126577]
[1717439470340,1.5864087,3785.3,3784.6,1.95676635]
[1717439470654,4.22789557,3785.4,3784.6,1.95676635]
[1717439470832,2.64174,3785.4,3784.6,1.95676635]
[1717439471204,2.15716081,3785.4,3784.7,3.34126064]
[1717439471454,1.58615557,3785.5,3784.8,1.32126577]
[1717439473351,1.58615557,3785.5,3784.9,2.64206]
[1717439473647,2.64149,3785.8,3785.0,1.32126577]
[1717439473648,2.15714716,3785.4,3785.0,1.32126577]
[1717439473867,1.58615557,3785.4,3785.0,1.32126577]
[1717439474222,1.58615557,3785.2,3785.0,1.32126577]
[1717439475348,2.15714716,3785.1,3785.0,1.32126577]
[1717439475618,1.58615557,3785.1,3785.0,1.32126577]
[1717439476244,3.21265159,3785.5,3785.0,1.32126577]
[1717439476480,0.5710148,3785.1,3785.0,1.32126577]
[1717439478418,0.57101333,3785.1,3785.0,1.52329741]
[1717439479182,0.57101333,3785.1,3785.0,4.01359741]
[1717439487732,1.5859334,3785.2,3785.1,2.64193]
[1717439487929,2.15684209,3785.2,3785.1,3.96319577]
[1717439488129,2.15684209,3785.2,3785.1,4.62874851]
[1717439488331,0.57090869,3785.2,3785.1,4.62874851]
[1717439489032,2.15684209,3785.2,3785.1,4.62874851]
[1717439489197,0.57090869,3785.2,3785.1,4.62874851]
[1717439490302,1.5859334,3785.3,3785.1,4.62874851]
[1717439490498,1.5859334,3785.3,3785.2,2.05337379]
[1717439490692,2.15685492,3785.3,3785.2,2.05337379]
[1717439491497,0.57092152,3785.3,3785.2,1.32126577]
[1717439491700,0.57092152,3785.3,3784.8,2.64214]
[1717439491952,0.57099127,3785.2,3784.9,1.32126577]
[1717439492104,0.57099127,3785.1,3784.9,1.32126577]
[1717439492453,2.3986,3785.6,3784.9,1.32126577]
[1717439492600,0.5710073,3785.5,3784.9,1.32126577]
[1717439492812,0.5710073,3785.4,3784.9,1.32126577]
[1717439493147,0.5710073,3785.3,3784.9,1.32126577]
[1717439493350,0.5710073,3785.2,3784.9,1.32126577]
[1717439493842,0.5710073,3785.1,3784.9,1.32126577]
[1717439494108,0.5710073,3785.0,3784.9,1.32126577]
[1717439499654,2.15715587,3785.0,3784.9,1.32126577]
[1717439501603,0.5710073,3785.0,3784.9,1.32126577]
[1717439502001,2.15715587,3785.0,3784.9,1.32126577]
[1717439503305,0.5710073,3785.0,3784.9,1.32126577]
[1717439503478,2.15715587,3785.0,3784.9,1.32126577]
[1717439503874,0.5710073,3785.0,3784.9,1.32126577]
[1717439504408,2.15715587,3785.0,3784.9,1.32126577]
[1717439504914,0.5710073,3785.0,3784.9,1.32126577]
[1717439505623,0.57099948,3785.0,3784.9,1.32126577]
[1717439505777,2.15710916,3785.0,3784.9,1.32126577]
[1717439510246,0.57099948,3785.0,3784.9,1.32126577]
[1717439510439,0.57099948,3785.0,3784.0,0.83001042]
[1717439510440,4.00906948,3785.0,3784.1,2.84966206]
[1717439510641,4.00906948,3785.0,3784.2,2.23938774]
[1717439510642,1.58620803,3784.8,3784.2,2.23938774]
[1717439510822,2.15720751,3784.7,3784.2,1.32126577]
[1717439511018,3.43807,3785.0,3784.2,1.32126577]
[1717439511019,2.15720751,3784.6,3784.2,1.32126577]
[1717439511214,1.58620803,3784.6,3784.2,2.24266359]
[1717439511751,0.57108766,3784.5,3784.2,2.24266359]
[1717439512645,2.15729569,3784.5,3784.2,2.24266359]
[1717439512852,1.58620803,3784.5,3784.2,2.24266359]
[1717439513053,1.58620803,3784.6,3784.2,2.24266359]
[1717439513249,0.57109412,3784.5,3784.2,1.32126577]
[1717439513452,2.15730215,3784.5,3784.2,1.32126577]
[1717439513655,1.58620803,3784.5,3784.2,1.32126577]
[1717439514130,0.57109412,3784.5,3784.2,1.32126577]
[1717439514950,1.58620803,3784.6,3784.2,1.32126577]
[1717439515160,1.58620803,3784.7,3784.2,1.32126577]
[1717439515670,2.15730215,3784.6,3784.2,1.32126577]
[1717439515837,1.58620803,3784.6,3784.2,1.32126577]
[1717439516843,0.57110251,3784.5,3784.2,1.32126577]
[1717439517042,2.15749837,3784.5,3784.2,1.53299235]
[1717439517290,1.58639586,3784.5,3784.3,3.2787]
[1717439517472,2.3096,3785.5,3784.3,7.24242577]
[1717439517473,1.58639586,3784.7,3784.3,7.24242577]
[1717439517649,0.57105743,3784.7,3784.6,0.796]
[1717439517973,1.58639586,3785.1,3784.7,2.4827]
[1717439518274,1.58639586,3785.1,3785.0,0.796]
[1717439518453,1.58639586,3785.4,3785.0,2.11726577]
[1717439518656,1.58639586,3785.4,3785.1,1.32126577]
[1717439519372,1.58639586,3785.4,3785.1,1.53299235]
[1717439519670,0.57096665,3785.3,3785.1,1.53299235]
[1717439520071,2.15736251,3785.3,3785.1,1.53299235]
[1717439520272,1.58639586,3785.3,3785.1,1.53299235]
[1717439520729,0.57096665,3785.2,3785.1,1.32126577]
[1717439521870,0.57096665,3785.2,3785.1,2.11726577]
[1717439522078,1.58598856,3785.3,3785.1,1.32126577]
[1717439522374,1.58598856,3785.4,3785.1,1.32126577]
[1717439522673,0.57095112,3785.3,3785.1,1.77164235]
[1717439524005,2.15693968,3785.3,3785.1,1.77164235]
[1717439524131,1.58598856,3785.3,3785.1,1.77164235]
[1717439524531,1.58598856,3785.4,3785.1,1.77164235]
[1717439524754,2.1569509,3785.3,3785.1,1.77164235]
[1717439524998,1.58598856,3785.3,3785.1,1.32126577]
[1717439525283,0.57096234,3785.2,3785.1,1.32126577]
[1717439526679,2.08890654,3786.8,3785.3,2.4903]
[1717439526886,0.1502417,3786.8,3786.2,0.796]
[1717439527185,0.1502417,3786.8,3786.3,1.32126577]
[1717439539334,0.1502417,3786.8,3786.3,3.96235577]
[1717439544224,0.1502417,3786.8,3786.6,2.64088]
[1717439544431,0.1502417,3786.8,3786.7,1.58535377]
[1717439545034,0.1502417,3786.8,3786.7,3.85705377]
[1717439549995,0.1502417,3786.8,3786.7,4.65205377]
[1717439550741,0.1502417,3786.8,3786.7,3.85705377]
[1717439551041,0.1502417,3786.8,3786.7,4.65205377]
[1717439552501,0.1502417,3786.8,3786.7,3.85705377]
[1717439552697,0.1502417,3786.8,3786.7,4.65205377]
[1717439557132,0.1502417,3786.8,3786.7,1.58535377]
[1717439557405,0.1502417,3786.8,3786.7,1.32126577]
[1717439564262,0.1502417,3786.8,3786.7,6.36916577]
[1717439564433,0.1502417,3786.8,3786.7,6.91916577]
[1717439564434,0.01569005,3786.8,3786.7,6.91916577]
[1717439564636,0.12715967,3788.0,3787.0,2.782]
[1717439564823,0.12715967,3788.0,3787.7,2.64008]
[1717439565022,0.12715967,3788.0,3787.8,1.32126577]
[1717439570255,0.12715967,3788.0,3787.8,2.11626577]
[1717439570256,0.07715967,3788.0,3787.8,2.11626577]
[1717439573658,0.07715967,3788.0,3787.9,2.63998]
[1717439573859,0.07715967,3788.0,3787.9,6.45354577]
[1717439574166,0.07715967,3788.0,3787.9,7.17840035]
[1717439575352,0.07715967,3788.0,3787.9,4.68610035]
[1717439575587,0.07715967,3788.0,3787.9,5.48110035]
[1717439577627,0.07715967,3788.0,3787.9,4.68610035]
[1717439577777,0.07715967,3788.0,3787.9,5.48110035]
[1717439579222,0.07715967,3788.0,3787.9,7.84560035]
[1717439580396,0.07715967,3788.0,3787.9,7.05060035]
[1717439580643,0.07715967,3788.0,3787.9,9.83260035]
[1717439580804,0.07715967,3788.0,3787.9,10.62760035]
[1717439585774,0.07715967,3788.0,3787.9,4.68610035]
[1717439585975,0.07715967,3788.0,3787.9,5.48110035]
[1717439586646,0.07715967,3788.0,3787.9,4.68610035]
[1717439587062,0.07715967,3788.0,3787.9,5.48110035]
[1717439589400,0.07715967,3788.0,3787.9,7.93070035]
[1717439590580,0.07715967,3788.0,3787.9,10.71270035]
[1717439591372,0.07715967,3788.0,3787.9,13.90268035]
[1717439592296,0.07715967,3788.0,3787.9,13.10768035]
[1717439592507,0.07715967,3788.0,3787.9,13.90268035]
[1717439592662,0.07715967,3788.0,3787.9,13.10768035]
[1717439592864,0.07715967,3788.0,3787.9,13.90268035]
[1717439593392,0.07715967,3788.0,3787.9,9.91770035]
[1717439593591,0.07715967,3788.0,3787.9,4.68610035]
[1717439594103,1.58469154,3789.2,3788.1,2.782]
[1717439594410,2.3447,3789.2,3788.8,3.43431]
[1717439594565,2.3447,3789.2,3788.9,1.32126577]
[1717439595885,2.3447,3789.2,3789.0,2.63921]
[1717439596207,2.3447,3789.2,3789.1,1.32126577]
[1717439600413,2.3504,3789.9,3789.2,2.63907]
[1717439600712,2.3504,3789.9,3789.3,1.32126577]
[1717439602712,1.58448181,3790.0,3789.5,0.795]
[1717439602911,2.282,3790.2,3789.6,1.32126577]
[1717439603337,2.232,3790.2,3789.6,1.32126577]
[1717439604435,2.63845,3790.1,3789.6,1.32126577]
[1717439604622,0.795,3790.0,3789.6,1.32126577]
[1717439605212,3.43345,3790.1,3789.6,1.32126577]
[1717439605817,2.63845,3790.1,3789.6,1.32126577]
[1717439607148,4.79304658,3790.1,3789.6,1.32126577]
[1717439607457,2.63845,3790.1,3789.6,1.32126577]
[1717439611451,3.81624456,3790.2,3789.6,1.32126577]
[1717439611654,2.63736,3791.7,3790.1,9.01911577]
[1717439611655,1.58424456,3790.3,3790.1,9.01911577]
[1717439611823,1.58424456,3790.8,3790.7,2.63803]
[1717439612041,1.58424456,3791.3,3790.7,4.22309877]
[1717439612238,2.4151,3791.7,3791.2,1.32126577]
[1717439614819,2.63744,3791.6,3791.2,1.32126577]
[1717439615018,0.51792691,3791.5,3790.6,2.6381]
[1717439615242,0.51792691,3791.5,3790.1,2.2774]
[1717439615243,2.63756,3791.4,3790.7,1.32126577]
[1717439616155,2.4071,3791.0,3790.7,1.32126577]
[1717439616670,2.63789,3790.9,3789.8,2.63863]
[1717439616875,2.63789,3790.9,3789.9,1.85890043]
[1717439617526,2.63789,3790.9,3789.9,1.32126577]
[1717439617723,2.63813,3790.6,3789.9,1.32126577]
[1717439628972,2.63813,3790.6,3790.0,1.32126577]
[1717439629184,2.63813,3790.6,3788.5,0.55097931]
[1717439629185,2.63909,3789.2,3788.1,3.19079931]
[1717439629334,2.63925,3789.0,3788.2,2.23819033]
[1717439629538,2.63925,3789.0,3788.2,1.32126577]
[1717439629735,2.63897,3789.4,3788.2,1.32126577]
[1717439629949,2.63897,3789.4,3788.3,0.63417358]
[1717439630237,1.906,3789.4,3788.4,1.32126577]
[1717439630438,2.63939,3788.8,3788.4,1.32126577]
[1717439634552,2.6391,3789.2,3788.4,1.32126577]
[1717439636080,2.6391,3789.2,3788.5,1.32126577]
[1717439636382,2.6391,3789.2,3788.6,0.13212658]
[1717439636576,2.6391,3789.2,3788.7,1.32126577]
[1717439642558,2.63931,3788.9,3788.7,1.32126577]
[1717439643254,2.63931,3788.9,3787.8,2.64001]
[1717439643459,2.63931,3788.9,3787.9,1.32126577]
[1717439643659,2.63931,3788.9,3788.0,0.39612758]
[1717439643860,2.63931,3788.9,3788.1,1.32126577]
[1717439644774,2.3835,3789.0,3788.1,1.32126577]
[1717439644775,2.63951,3788.6,3788.1,1.32126577]
[1717439651507,2.63951,3788.6,3787.5,2.2774]
[1717439651508,7.32,3789.4,3788.5,1.32126577]
[1717439651713,7.32,3789.4,3788.6,1.69666235]
[1717439651872,7.32,3789.4,3788.7,1.32126577]
[1717439652073,2.63871,3789.8,3788.7,1.32126577]
[1717439652377,2.63887,3789.5,3788.7,1.32126577]
[1717439653330,2.63887,3789.5,3788.7,4.60001935]
[1717439653908,6.83394,3789.9,3788.7,4.60001935]
[1717439654293,4.92794,3789.9,3788.7,4.60001935]
[1717439656235,2.63881,3789.6,3788.7,3.96066577]
[1717439660973,2.63902,3789.3,3788.7,1.32126577]
[1717439663212,2.63879,3789.7,3788.7,3.96068577]
[1717439663543,0.57042485,3789.6,3788.8,2.4882]
[1717439663704,0.57042485,3789.6,3788.9,1.32126577]
[1717439664912,2.63887,3789.5,3788.9,1.32126577]
[1717439667651,2.63907,3789.3,3788.9,1.32126577]
[1717439669977,2.63924,3789.0,3788.0,4.93401]
[1717439670172,2.63924,3789.0,3788.1,1.32126577]
[1717439671549,2.63942,3788.8,3788.1,1.32126577]
[1717439671747,2.63977,3788.2,3787.4,2.2871]
[1717439671952,2.63977,3788.2,3787.5,1.32126577]
[1717439673253,2.63977,3788.2,3787.5,3.96149577]
[1717439673469,2.63977,3788.2,3787.6,0.62485958]
[1717439673632,2.63951,3788.6,3787.7,1.32126577]
[1717439677069,2.63971,3788.3,3787.7,1.32126577]
[1717439680712,2.63971,3788.3,3787.8,2.2936]
[1717439680908,2.63971,3788.3,3787.9,1.32126577]
[1717439681115,2.63946,3788.7,3788.0,0.36148658]
[1717439681313,2.63946,3788.7,3788.1,1.32126577]
[1717439682214,2.63916,3789.1,3788.2,5.09576]
[1717439682456,2.63916,3789.1,3788.3,1.32126577]
[1717439682653,3.0,3789.4,3788.4,1.32126577]
[1717439682654,2.63931,3788.9,3788.4,1.32126577]
[1717439695678,2.6395,3788.6,3788.4,1.32126577]
[1717439696549,2.359,3788.8,3787.3,2.3229]
[1717439696785,1.906,3788.6,3787.4,1.32126577]
[1717439696968,0.5705424,3788.5,3787.4,1.32126577]
[1717439697205,0.24765424,3788.4,3787.4,1.32126577]
[1717439697995,0.24765424,3788.4,3786.3,3.833673]
[1717439697996,2.64035,3787.4,3786.5,2.3907]
[1717439698997,2.15622405,3787.3,3786.5,2.3907]
[1717439699203,2.64052,3787.2,3786.5,2.3907]
[1717439699365,2.64052,3787.2,3786.3,1.056673]
[1717439699563,2.64052,3787.2,3786.4,1.69104507]
[1717439701095,2.64052,3787.2,3786.4,1.32126577]
[1717439701392,4.79675416,3787.2,3786.4,1.32126577]
[1717439701572,2.64068,3786.9,3786.4,1.32126577]
[1717439703091,1.58545886,3787.3,3786.4,1.32126577]
[1717439703092,4.22586886,3787.3,3786.4,1.32126577]
[1717439703270,2.64041,3787.3,3786.4,1.32126577]
[1717439703592,2.64041,3787.3,3786.5,2.65513658]
[1717439703767,2.64041,3787.3,3786.6,1.32126577]
[1717439706758,4.22550775,3787.7,3786.6,1.32126577]
[1717439707697,2.64014,3787.7,3786.6,1.32126577]
[1717439707891,2.64014,3787.7,3786.7,0.66173224]
[1717439708099,2.64014,3787.7,3786.8,1.32126577]
[1717439708392,2.64014,3787.7,3786.8,3.96198577]
[1717439708577,3.0,3788.0,3787.0,3.96185577]
[1717439708986,2.64001,3787.9,3787.0,3.96185577]
[1717439710072,2.64001,3787.9,3787.0,1.32126577]
[1717439710856,2.64021,3787.6,3787.0,1.32126577]
[1717439715206,7.22529252,3788.0,3787.0,1.32126577]
[1717439715382,5.63996,3788.0,3787.1,0.39619258]
[1717439715561,5.63996,3788.0,3787.2,1.32126577]
[1717439716986,7.22529252,3788.0,3787.2,1.32126577]
[1717439718082,7.22529252,3788.0,3787.2,3.78656577]
[1717439718284,7.22529252,3788.0,3787.2,4.46890761]
[1717439718475,5.63996,3788.0,3787.2,4.46890761]
[1717439719719,7.22529252,3788.0,3787.2,4.46890761]
[1717439720022,0.57065044,3787.9,3787.2,4.46890761]
[1717439720991,5.63996,3788.0,3787.2,4.46890761]
[1717439721206,7.22529252,3788.0,3787.3,0.48651002]
[1717439721509,7.22529252,3788.0,3787.4,1.32126577]
[1717439721708,5.63996,3788.0,3787.4,1.32126577]
[1717439723221,7.22529252,3788.0,3787.4,1.32126577]
[1717439724291,1.58533252,3787.9,3787.4,1.32126577]
[1717439724938,1.58533252,3787.7,3787.4,1.32126577]
[1717439725222,1.58533252,3787.6,3787.4,1.32126577]
[1717439726627,1.58533252,3787.6,3787.2,2.4653]
[1717439726628,1.58533252,3787.6,3786.9,2.64066]
[1717439726801,3.803616,3788.0,3787.0,1.32126577]
[1717439726802,4.22559252,3787.5,3787.0,1.32126577]
[1717439727007,1.58533252,3787.2,3787.0,1.32126577]
[1717439729127,1.58533252,3787.1,3787.0,1.32126577]
[1717439729734,1.58533252,3787.1,3786.4,2.64096]
[1717439729901,1.58533252,3787.1,3786.5,1.32126577]
[1717439730103,4.22586252,3787.2,3786.5,1.32126577]
[1717439730470,2.64064,3787.0,3786.5,1.32126577]
[1717439730602,4.22597252,3787.0,3786.5,1.32126577]
[1717439731210,1.58533252,3786.9,3786.5,1.32126577]
[1717439731399,4.22597252,3787.0,3786.5,1.32126577]
[1717439731737,2.64064,3787.0,3786.5,1.32126577]
[1717439731927,0.06881068,3786.9,3786.5,1.32126577]
[1717439732812,1.65425156,3786.9,3786.5,1.32126577]
[1717439733536,1.58544088,3786.8,3786.5,1.32126577]
[1717439733907,1.65595386,3786.7,3786.5,1.32126577]
[1717439734235,0.07051298,3786.7,3786.5,1.32126577]
[1717439734411,1.58544088,3786.8,3786.5,1.32126577]
[1717439734616,0.07051298,3786.7,3786.5,1.32126577]
[1717439734830,2.64083,3786.7,3786.5,1.32126577]
[1717439735003,0.07047849,3786.6,3786.5,1.32126577]
[1717439741316,2.64101,3786.5,3785.9,2.3257]
[1717439741529,0.796,3786.3,3786.0,1.32126577]
[1717439742046,0.0679709,3786.2,3786.0,1.32126577]
[1717439742343,0.796,3786.1,3786.0,1.32126577]